bitfinex-derivatives/quotes_SOLF0:USTF0_20220106
["timestamp","ask_amount","ask_price","bid_price","bid_amount"]
[1641477514628,4.0,149.2,149.14,14.11915534]
[1641477515128,32.57179,149.21,149.1,14.11915534]
[1641477515328,4.0,149.2,149.1,14.11915534]
[1641477515529,36.57179,149.21,149.1,14.11915534]
[1641477515830,31.66479,149.18,149.1,14.11915534]
[1641477516029,32.22779,149.18,149.1,14.11915534]
[1641477516230,32.22779,149.18,149.09,14.11915534]
[1641477517132,27.66479,149.18,149.13,14.11915534]
[1641477517935,27.66479,149.18,149.13,18.11915534]
[1641477518133,27.66479,149.21,149.13,18.11915534]
[1641477518134,27.66479,149.21,149.17,14.11915534]
[1641477520437,14.11915534,149.24,149.17,24.87915534]
[1641477520636,14.11915534,149.24,149.18,4.0]
[1641477520838,27.66479,149.25,149.18,4.0]
[1641477521239,27.66479,149.25,149.16,6.69366445]
[1641477521441,27.66479,149.25,149.14,14.11915534]
[1641477521640,39.66104078,149.25,149.14,14.11915534]
[1641477521840,32.96379,149.25,149.19,1.44217253]
[1641477522038,27.66479,149.21,149.19,1.44217253]
[1641477522238,32.37779,149.21,149.19,1.44217253]
[1641477523439,32.37779,149.21,149.13,22.52219786]
[1641477524343,27.66479,149.21,149.13,22.52219786]
[1641477525042,27.66479,149.21,149.15,14.11915534]
[1641477526443,27.66479,149.22,149.15,14.11915534]
[1641477527745,4.0,149.25,149.15,14.11915534]
[1641477528145,27.66479,149.24,149.16,27.66479]
[1641477528447,27.66479,149.24,149.15,14.11915534]
[1641477528747,27.66479,149.24,149.17,5.44217253]
[1641477528948,27.66479,149.24,149.17,12.47817253]
[1641477529747,27.66479,149.24,149.2,14.11915534]
[1641477530750,27.66479,149.24,149.19,14.11915534]
[1641477531656,27.66479,149.24,149.2,14.11915534]
[1641477533250,3.29215979,149.23,149.18,22.56368647]
[1641477534250,3.29215979,149.23,149.18,14.11915534]
[1641477534950,27.66479,149.24,149.18,18.11915534]
[1641477535150,27.66479,149.24,149.2,14.11915534]
[1641477537353,41.78394534,149.27,149.2,19.07715534]
[1641477537753,14.11915534,149.27,149.23,4.0]
[1641477537955,14.11915534,149.27,149.2,19.07715534]
[1641477538153,14.11915534,149.27,149.23,4.0]
[1641477538355,14.11915534,149.27,149.22,30.69097722]
[1641477538554,79.44268909,149.31,149.24,1.44217253]
[1641477538755,41.78394534,149.31,149.24,1.44217253]
[1641477539853,3.29019218,149.3,149.25,14.11915534]
[1641477540057,7.85919218,149.3,149.25,14.11915534]
[1641477540856,7.85919218,149.3,149.23,14.11915534]
[1641477540857,3.29019218,149.29,149.23,14.11915534]
[1641477541558,18.68815534,149.3,149.23,14.11915534]
[1641477541759,4.569,149.3,149.21,27.66479]
[1641477541959,4.569,149.3,149.21,31.66479]
[1641477542462,4.569,149.3,149.21,27.66479]
[1641477542662,4.569,149.3,149.22,1.43008601]
[1641477542864,8.569,149.3,149.22,1.43008601]
[1641477543062,4.569,149.3,149.22,1.43008601]
[1641477543262,4.569,149.3,149.21,27.66479]
[1641477543963,8.569,149.3,149.21,27.66479]
[1641477544362,8.569,149.3,149.17,10.14]
[1641477544564,27.66479,149.28,149.17,37.80479]
[1641477544763,4.0,149.27,149.17,37.80479]
[1641477544962,4.0,149.26,149.17,37.80479]
[1641477545162,9.973,149.27,149.19,4.69234728]
[1641477545364,5.973,149.27,149.19,4.69234728]
[1641477545864,5.973,149.27,149.18,6.12227676]
[1641477546967,5.973,149.27,149.17,32.35713728]
[1641477547168,5.973,149.27,149.17,36.35713728]
[1641477547369,5.973,149.27,149.18,6.69299244]
[1641477547568,5.973,149.27,149.19,4.69234728]
[1641477547969,27.66479,149.28,149.19,4.69234728]
[1641477548169,27.66479,149.28,149.19,8.69234728]
[1641477548369,27.66479,149.28,149.22,6.69097722]
[1641477548569,4.69234728,149.29,149.23,27.66479]
[1641477548771,27.66479,149.31,149.23,27.66479]
[1641477548971,27.66479,149.31,149.23,31.66479]
[1641477549172,4.69234728,149.32,149.23,27.66479]
[1641477549571,4.69234728,149.32,149.24,4.69234728]
[1641477549772,27.66479,149.33,149.24,6.12226231]
[1641477550773,4.69234728,149.3,149.29,4.69234728]
[1641477550973,10.66434728,149.3,149.29,4.69234728]
[1641477551373,5.972,149.3,149.29,4.69234728]
[1641477551573,5.972,149.3,149.28,4.69234728]
[1641477551973,17.40843121,149.32,149.28,4.69234728]
[1641477552477,3.28927587,149.29,149.28,4.69234728]
[1641477553277,3.28927587,149.3,149.28,4.69234728]
[1641477553884,3.28927587,149.3,149.28,11.65034728]
[1641477554078,14.11915534,149.31,149.28,11.65034728]
[1641477554278,2.19933423,149.32,149.28,15.65034728]
[1641477554477,2.19933423,149.32,149.29,4.0]
[1641477554680,2.19933423,149.32,149.31,55.32958]
[1641477554877,37.65874375,149.35,149.31,55.32958]
[1641477555079,4.73103461,149.34,149.27,37.65874375]
[1641477556277,41.65874375,149.38,149.31,4.73178014]
[1641477556478,37.65874375,149.38,149.31,4.73178014]
[1641477556678,27.66479,149.35,149.31,4.73178014]
[1641477557279,27.66479,149.35,149.32,4.73178014]
[1641477557478,37.65874375,149.39,149.32,4.73178014]
[1641477558180,69.32353375,149.41,149.34,4.73178014]
[1641477558380,65.32353375,149.41,149.34,4.73178014]
[1641477559182,27.66479,149.41,149.35,4.73178014]
[1641477561082,31.66479,149.41,149.35,4.73178014]
[1641477561682,69.32353375,149.41,149.34,4.73178014]
[1641477561883,74.20653375,149.41,149.34,4.73178014]
[1641477562284,70.20653375,149.41,149.34,4.73178014]
[1641477562483,70.20653375,149.41,149.35,4.73178014]
[1641477562484,32.54779,149.41,149.35,4.73178014]
[1641477562886,36.54779,149.41,149.35,4.73178014]
[1641477563387,36.54779,149.41,149.36,4.73178014]
[1641477563788,4.0,149.39,149.36,4.73178014]
[1641477564189,4.0,149.38,149.32,4.73178014]
[1641477564389,10.725,149.38,149.32,4.73178014]
[1641477564992,4.0,149.37,149.32,4.73178014]
[1641477565191,6.725,149.38,149.28,4.70362266]
[1641477565593,4.0,149.31,149.28,4.70362266]
[1641477565794,5.882,149.31,149.28,4.70362266]
[1641477566193,5.882,149.31,149.23,4.0]
[1641477566794,5.882,149.31,149.25,27.66479]
[1641477566993,27.66479,149.34,149.26,4.0]
[1641477567193,107.01894375,149.39,149.26,10.68941066]
[1641477567393,107.01894375,149.39,149.26,6.68941066]
[1641477567596,103.01894375,149.39,149.26,10.68941066]
[1641477567895,103.01894375,149.39,149.26,6.68941066]
[1641477568095,65.3602,149.39,149.29,4.0]
[1641477568394,4.0,149.41,149.28,24.0]
[1641477568596,5.425,149.39,149.28,24.0]
[1641477568796,5.425,149.39,149.3,27.66479]
[1641477570197,5.425,149.39,149.31,6.687174]
[1641477570400,27.66479,149.4,149.32,4.0]
[1641477571399,27.66479,149.42,149.32,4.0]
[1641477571600,65.32353375,149.42,149.32,4.0]
[1641477571799,69.32353375,149.42,149.3,55.32958]
[1641477571999,69.32353375,149.42,149.32,4.0]
[1641477572199,65.32353375,149.42,149.32,4.0]
[1641477572600,27.66479,149.42,149.32,4.0]
[1641477572800,31.66479,149.42,149.3,99.67572135]
[1641477573001,4.0,149.41,149.3,99.67572135]
[1641477573202,41.65874375,149.41,149.3,62.0169776]
[1641477573401,37.65874375,149.41,149.32,4.0]
[1641477574904,37.65874375,149.41,149.31,20.0]
[1641477575304,37.65874375,149.41,149.3,55.32958]
[1641477575505,27.66479,149.42,149.3,55.32958]
[1641477576604,11.91514661,149.41,149.31,7.00597115]
[1641477578507,11.91514661,149.41,149.31,11.00597115]
[1641477579008,11.91514661,149.41,149.34,27.66479]
[1641477579508,11.91514661,149.41,149.35,4.0]
[1641477579909,11.91514661,149.41,149.36,4.0]
[1641477580313,37.65874375,149.44,149.39,4.0]
[1641477580508,37.65874375,149.44,149.4,4.0]
[1641477580711,37.65874375,149.44,149.39,5.713]
[1641477580909,37.65874375,149.44,149.4,27.66479]
[1641477581508,37.65874375,149.46,149.4,27.66479]
[1641477582510,4.0,149.45,149.35,6.68516228]
[1641477582712,4.0,149.44,149.35,6.68516228]
[1641477582912,27.66479,149.45,149.35,6.68516228]
[1641477583213,31.66479,149.45,149.35,6.68516228]
[1641477583611,31.66479,149.45,149.35,13.69099306]
[1641477583612,69.32353375,149.45,149.35,13.69099306]
[1641477584412,14.1884202,149.41,149.35,6.68516228]
[1641477585513,14.1884202,149.41,149.34,41.8532102]
[1641477585514,20.5634202,149.41,149.34,41.8532102]
[1641477586013,18.1884202,149.4,149.34,27.66479]
[1641477586213,4.0,149.35,149.33,14.1884202]
[1641477586415,4.0,149.34,149.3,37.65874375]
[1641477586615,10.225,149.35,149.3,37.65874375]
[1641477586815,6.225,149.35,149.3,37.65874375]
[1641477587015,6.225,149.35,149.25,27.66479]
[1641477589016,27.66479,149.36,149.26,24.0]
[1641477589417,27.66479,149.36,149.25,27.66479]
[1641477589618,33.24179,149.36,149.26,6.68941066]
[1641477590017,33.24179,149.36,149.26,13.65643186]
[1641477590717,4.0,149.35,149.26,13.65643186]
[1641477590920,33.24179,149.36,149.26,13.65643186]
[1641477591320,37.24179,149.36,149.26,13.65643186]
[1641477591519,4.0,149.35,149.26,6.68941066]
[1641477591720,4.0,149.35,149.25,27.66479]
[1641477593121,4.0,149.32,149.25,27.66479]
[1641477593322,10.453,149.32,149.25,27.66479]
[1641477594122,6.453,149.32,149.25,27.66479]
[1641477594522,27.66479,149.36,149.25,27.66479]
[1641477594722,27.66479,149.36,149.25,31.66479]
[1641477594924,27.66479,149.36,149.26,8.4473157]
[1641477595124,27.66479,149.36,149.27,6.68896321]
[1641477595324,27.66479,149.36,149.28,27.66479]
[1641477595925,27.66479,149.36,149.28,66.76709651]
[1641477596527,4.0,149.35,149.28,66.76709651]
[1641477596825,5.794,149.35,149.28,66.76709651]
[1641477597428,5.794,149.35,149.29,8.4473157]
[1641477597627,9.794,149.35,149.29,8.4473157]
[1641477597927,5.794,149.35,149.29,8.4473157]
[1641477598125,3.28789474,149.34,149.29,1.44356276]
[1641477599528,3.28789474,149.34,149.29,5.44356276]
[1641477599730,3.28789474,149.34,149.29,12.1314076]
[1641477599932,37.65874375,149.39,149.3,4.0]
[1641477600130,3.2872716,149.35,149.3,4.0]
[1641477601130,37.65874375,149.41,149.3,4.0]
[1641477601332,65.7877,149.42,149.3,60.08978408]
[1641477601531,27.66479,149.41,149.31,27.66479]
[1641477601733,27.66479,149.41,149.31,34.351964]
[1641477601932,27.66479,149.41,149.31,27.66479]
[1641477602132,27.66479,149.41,149.32,7.0036925]
[1641477602931,11.91641561,149.4,149.32,7.0036925]
[1641477603735,27.66479,149.41,149.32,7.0036925]
[1641477604335,27.66479,149.41,149.32,11.0036925]
[1641477604934,27.66479,149.41,149.32,7.0036925]
[1641477607639,65.32353375,149.43,149.36,4.0]
[1641477607836,27.66479,149.43,149.37,6.68449198]
[1641477608137,37.65874375,149.44,149.37,6.68449198]
[1641477608738,4.0,149.45,149.35,7.0036925]
[1641477609038,4.683,149.44,149.35,7.0036925]
[1641477609538,32.34779,149.44,149.35,7.0036925]
[1641477609737,32.34779,149.44,149.34,34.6684825]
[1641477609938,32.34779,149.44,149.35,6.68516228]
[1641477610139,32.34779,149.44,149.34,34.6684825]
[1641477610739,32.34779,149.44,149.35,7.0036925]
[1641477611538,32.34779,149.44,149.37,27.66479]
[1641477612639,32.34779,149.44,149.34,31.66479]
[1641477612938,32.34779,149.44,149.34,27.66479]
[1641477613138,32.34779,149.44,149.34,34.35062272]
[1641477613538,32.34779,149.44,149.34,44.55062272]
[1641477613738,32.34779,149.44,149.34,48.55062272]
[1641477613938,32.34779,149.44,149.35,6.9843254]
[1641477614241,32.34779,149.44,149.35,10.9843254]
[1641477614540,32.34779,149.44,149.35,6.9843254]
[1641477615739,32.34779,149.44,149.34,44.55062272]
[1641477616340,36.34779,149.44,149.34,34.35062272]
[1641477616540,36.34779,149.44,149.35,7.00524683]
[1641477616740,32.34779,149.44,149.35,7.00524683]
[1641477616940,4.0,149.42,149.35,7.00524683]
[1641477617140,4.0,149.43,149.35,7.00524683]
[1641477617540,27.66479,149.4,149.35,21.19415131]
[1641477617740,32.57179,149.4,149.35,21.19415131]
[1641477618641,4.0,149.37,149.34,14.18890448]
[1641477618840,9.155,149.37,149.34,14.18890448]
[1641477619040,5.155,149.37,149.34,14.18890448]
[1641477619240,9.155,149.37,149.34,14.18890448]
[1641477619641,27.66479,149.35,149.3,51.84764823]
[1641477619840,27.66479,149.35,149.3,14.18890448]
[1641477620842,27.66479,149.35,149.29,14.18890448]
[1641477623744,27.66479,149.35,149.28,14.18890448]
[1641477624745,27.66479,149.35,149.29,14.18890448]
[1641477625746,4.73117631,149.34,149.33,4.73117631]
[1641477625944,11.41317631,149.34,149.33,4.73117631]
[1641477626647,6.682,149.34,149.33,4.73117631]
[1641477626846,27.66479,149.35,149.32,4.73117631]
[1641477627246,14.18890448,149.36,149.32,4.73117631]
[1641477627749,4.73047682,149.36,149.32,14.18890448]
[1641477628147,4.0,149.34,149.29,37.65874375]
[1641477628347,9.39847682,149.36,149.29,37.65874375]
[1641477628547,4.0,149.32,149.29,37.65874375]
[1641477628748,7.127,149.32,149.29,37.65874375]
[1641477628948,7.127,149.32,149.27,37.65874375]
[1641477629149,11.127,149.32,149.27,37.65874375]
[1641477629348,7.127,149.32,149.27,37.65874375]
[1641477629850,27.66479,149.3,149.28,4.73276141]
[1641477630951,37.65874375,149.37,149.29,4.73276141]
[1641477631750,37.65874375,149.37,149.25,4.0]
[1641477631751,27.66479,149.36,149.32,4.73276141]
[1641477632550,27.66479,149.36,149.35,4.73276141]
[1641477633352,27.66479,149.36,149.34,4.73276141]
[1641477635153,27.66479,149.38,149.34,4.73276141]
[1641477635755,27.66479,149.41,149.34,4.73276141]
[1641477637053,31.66479,149.41,149.34,4.73276141]
[1641477637254,27.66479,149.41,149.34,4.73276141]
[1641477637457,27.66479,149.41,149.37,4.73276141]
[1641477638056,11.91912635,149.4,149.35,4.73276141]
[1641477639459,27.66479,149.41,149.35,4.73276141]
[1641477639659,27.66479,149.41,149.36,4.73276141]
[1641477640559,3.28635332,149.4,149.37,4.73276141]
[1641477640759,5.332e-05,149.4,149.37,11.41725339]
[1641477641161,5.332e-05,149.4,149.37,4.73276141]
[1641477641362,27.66479,149.43,149.34,34.35062272]
[1641477641560,27.66479,149.43,149.34,27.66479]
[1641477641761,27.66479,149.43,149.35,7.00346321]
[1641477642861,27.66479,149.43,149.34,27.66479]
[1641477643062,11.91536813,149.42,149.37,4.72972311]
[1641477643863,27.66479,149.43,149.38,4.72972311]
[1641477644464,37.65874375,149.45,149.38,4.72972311]
[1641477644864,106.16454375,149.46,149.38,4.72972311]
[1641477645163,106.16454375,149.46,149.38,10.60772311]
[1641477645364,37.65874375,149.46,149.38,10.60772311]
[1641477645764,11.91223039,149.45,149.4,4.72972311]
[1641477646764,11.91223039,149.46,149.4,4.72972311]
[1641477646965,11.91223039,149.46,149.4,11.36072311]
[1641477647666,27.66479,149.47,149.43,4.72972311]
[1641477648666,11.91053373,149.46,149.42,4.72972311]
[1641477649969,37.65874375,149.49,149.42,32.39451311]
[1641477650170,37.65874375,149.49,149.42,38.07251311]
[1641477650975,24.56601742,149.52,149.45,8.72972311]
[1641477651170,24.56601742,149.52,149.45,4.72972311]
[1641477651374,24.56601742,149.52,149.46,6.68047298]
[1641477651772,56.84544942,149.56,149.46,6.68047298]
[1641477651972,84.51023942,149.56,149.48,4.0]
[1641477652173,27.66479,149.56,149.49,4.72972311]
[1641477653875,27.66479,149.56,149.5,27.66479]
[1641477654075,56.84544942,149.62,149.54,4.0]
[1641477654475,56.84544942,149.62,149.53,4.0]
[1641477654675,56.84544942,149.62,149.54,4.0]
[1641477654878,56.84544942,149.62,149.53,4.0]
[1641477655078,16.92050243,149.66,149.55,8.72972311]
[1641477655378,16.92050243,149.66,149.55,18.31418192]
[1641477655778,16.92050243,149.66,149.56,4.0]
[1641477655980,16.92050243,149.66,149.59,27.66479]
[1641477656979,56.84544942,149.67,149.59,27.66479]
[1641477657380,56.84544942,149.67,149.59,31.66479]
[1641477657579,56.84544942,149.67,149.63,4.0]
[1641477657780,56.84544942,149.67,149.63,5.818]
[1641477657979,56.84544942,149.68,149.64,27.66479]
[1641477658179,56.84544942,149.68,149.65,4.0]
[1641477658382,56.84544942,149.68,149.64,27.66479]
[1641477659282,27.66479,149.7,149.64,27.66479]
[1641477659682,27.66479,149.7,149.64,31.66479]
[1641477659883,27.66479,149.7,149.64,27.66479]
[1641477660083,4.0,149.69,149.61,11.09772311]
[1641477660284,27.66479,149.7,149.61,11.09772311]
[1641477660487,27.66479,149.7,149.64,4.72972311]
[1641477660488,14.16433084,149.68,149.64,4.72972311]
[1641477661486,27.66479,149.7,149.62,4.72972311]
[1641477661487,14.16433084,149.66,149.62,4.72972311]
[1641477661886,14.16433084,149.66,149.64,27.66479]
[1641477662086,14.16433084,149.66,149.62,4.72972311]
[1641477662287,27.66479,149.7,149.63,4.72972311]
[1641477662288,14.16433084,149.67,149.63,4.72972311]
[1641477662889,14.16433084,149.67,149.62,4.72972311]
[1641477663088,14.16433084,149.66,149.62,4.72972311]
[1641477663889,14.16433084,149.66,149.63,27.66479]
[1641477664089,14.16433084,149.66,149.64,4.0]
[1641477664289,14.16433084,149.66,149.63,27.66479]
[1641477664990,14.16433084,149.67,149.63,32.39451311]
[1641477665790,14.16433084,149.65,149.63,27.66479]
[1641477666691,14.16433084,149.65,149.63,31.66479]
[1641477666892,5.52233084,149.68,149.64,4.72972311]
[1641477667291,5.52233084,149.68,149.65,4.0]
[1641477667492,5.52233084,149.68,149.65,6.67200427]
[1641477667695,27.66479,149.7,149.63,27.66479]
[1641477669096,31.66479,149.7,149.63,27.66479]
[1641477669496,31.66479,149.7,149.59,27.66479]
[1641477669699,4.0,149.66,149.59,27.66479]
[1641477669896,11.142,149.66,149.59,27.66479]
[1641477670598,7.142,149.66,149.59,27.66479]
[1641477670997,4.0,149.69,149.59,27.66479]
[1641477671196,4.0,149.69,149.59,34.19679]
[1641477671399,4.0,149.69,149.59,38.19679]
[1641477671595,4.0,149.69,149.61,4.72972311]
[1641477671798,37.77886795,149.68,149.61,4.72972311]
[1641477672399,41.77886795,149.68,149.61,4.72972311]
[1641477672598,4.0,149.68,149.62,4.72972311]
[1641477672899,53.66015255,149.69,149.62,4.72972311]
[1641477673398,15.8812846,149.69,149.59,62.00403353]
[1641477674099,15.8812846,149.69,149.62,4.72193521]
[1641477674299,53.66015255,149.69,149.62,4.72193521]
[1641477674900,3.77806416,149.68,149.59,55.32958]
[1641477675100,10.97306416,149.68,149.61,4.72211875]
[1641477675502,4.0,149.67,149.61,4.72211875]
[1641477675900,4.0,149.67,149.59,55.32958]
[1641477675901,4.0,149.66,149.59,60.05239828]
[1641477676101,4.0,149.65,149.59,60.05239828]
[1641477676301,10.15,149.65,149.59,60.05239828]
[1641477676503,4.0,149.62,149.53,37.77886795]
[1641477676702,10.483,149.62,149.53,37.77886795]
[1641477676903,4.0,149.57,149.52,37.77886795]
[1641477677105,8.972,149.57,149.52,37.77886795]
[1641477677303,4.0,149.54,149.52,37.77886795]
[1641477677505,7.228,149.54,149.52,37.77886795]
[1641477677905,7.228,149.54,149.48,56.84544942]
[1641477678106,7.228,149.54,149.47,56.21358044]
[1641477678306,5.21064699,149.54,149.47,56.21358044]
[1641477679008,5.21064699,149.54,149.47,44.78652682]
[1641477680007,5.21064699,149.54,149.46,18.1075266]
[1641477680008,5.21064699,149.54,149.46,44.45934093]
[1641477680209,9.21064699,149.54,149.46,37.77886795]
[1641477680408,4.0,149.53,149.46,37.77886795]
[1641477681008,4.0,149.53,149.43,27.66479]
[1641477681009,4.0,149.52,149.44,7.00765887]
[1641477681813,4.0,149.53,149.44,7.00765887]
[1641477682010,9.21064699,149.54,149.46,4.0]
[1641477682211,3.28014224,149.51,149.46,4.0]
[1641477682412,3.28014224,149.51,149.44,8.45389919]
[1641477682812,10.11214224,149.51,149.44,8.45389919]
[1641477683312,10.832,149.51,149.45,37.77886795]
[1641477683514,4.0,149.47,149.45,37.77886795]
[1641477683714,7.091,149.47,149.45,37.77886795]
[1641477684114,7.091,149.47,149.44,1.44624032]
[1641477684514,11.091,149.47,149.44,1.44624032]
[1641477685013,7.091,149.47,149.44,1.44624032]
[1641477685213,7.091,149.47,149.4,37.77886795]
[1641477685413,5.855,149.52,149.42,4.0]
[1641477685614,4.0,149.52,149.4,37.77886795]
[1641477685817,4.0,149.51,149.4,37.77886795]
[1641477686018,31.66479,149.51,149.44,27.66479]
[1641477686316,34.94464544,149.51,149.44,27.66479]
[1641477686517,4.0,149.5,149.44,27.66479]
[1641477686918,34.94464544,149.51,149.43,1.44624032]
[1641477687321,7.27985544,149.5,149.45,1.44624032]
[1641477687919,3.27985544,149.5,149.45,1.44624032]
[1641477688119,3.27985544,149.49,149.4,45.90803673]
[1641477688320,11.67585544,149.49,149.4,15.13681953]
[1641477688519,11.67585544,149.49,149.4,8.45389107]
[1641477688719,7.67585544,149.49,149.4,8.45389107]
[1641477689118,3.27985544,149.48,149.4,57.66152302]
[1641477689321,3.27985544,149.48,149.4,64.34467479]
[1641477689819,4.396,149.49,149.4,64.34467479]
[1641477690020,4.396,149.49,149.41,39.22510827]
[1641477690220,8.396,149.49,149.41,39.22510827]
[1641477690520,4.0,149.45,149.41,39.22510827]
[1641477690721,6.145,149.45,149.41,39.22510827]
[1641477690921,6.145,149.45,149.4,8.45389107]
[1641477691824,6.145,149.45,149.4,7.00765075]
[1641477692022,27.66479,149.42,149.37,68.7056]
[1641477692222,7.199,149.42,149.36,10.68493883]
[1641477692424,7.199,149.42,149.37,4.0]
[1641477692622,6.145,149.45,149.38,4.0]
[1641477692922,6.145,149.45,149.38,6.68404518]
[1641477694024,6.145,149.45,149.39,27.66479]
[1641477695027,6.145,149.45,149.35,6.68516228]
[1641477695829,137.4652,149.49,149.35,6.68516228]
[1641477696028,137.4652,149.49,149.37,6.68426857]
[1641477696228,137.4652,149.49,149.41,27.66479]
[1641477696428,8.396,149.49,149.41,27.66479]
[1641477696629,4.0,149.48,149.41,27.66479]
[1641477696830,8.396,149.49,149.41,27.66479]
[1641477698634,3.28096167,149.48,149.43,13.8195679]
[1641477699234,4.0,149.45,149.43,13.8195679]
[1641477699434,8.518,149.45,149.43,13.8195679]
[1641477699636,8.518,149.45,149.42,8.45375735]
[1641477699834,8.518,149.45,149.42,22.63551484]
[1641477700537,4.0,149.44,149.42,22.63551484]
[1641477700734,4.0,149.44,149.36,11.42890936]
[1641477700735,4.0,149.44,149.38,37.77886795]
[1641477701236,4.518,149.45,149.38,37.77886795]
[1641477701636,4.518,149.45,149.37,37.77886795]
[1641477702035,27.66479,149.47,149.37,37.77886795]
[1641477702238,27.66479,149.47,149.38,27.66479]
[1641477702737,27.66479,149.47,149.38,65.44365795]
[1641477702938,4.0,149.46,149.38,65.44365795]
[1641477703137,10.953,149.46,149.38,65.44365795]
[1641477703338,10.953,149.46,149.39,46.2326253]
[1641477704340,6.953,149.46,149.39,46.2326253]
[1641477705844,6.953,149.46,149.4,37.77886795]
[1641477708047,31.66479,149.5,149.4,37.77886795]
[1641477708249,4.0,149.46,149.4,37.77886795]
[1641477708448,9.549,149.46,149.41,37.77886795]
[1641477708648,4.0,149.43,149.41,37.77886795]
[1641477708851,6.441,149.43,149.41,6.795e-05]
[1641477709449,6.441,149.43,149.39,19.88266671]
[1641477709450,6.441,149.43,149.39,8.45375735]
[1641477710252,4.0,149.48,149.39,8.45375735]
[1641477710451,15.91242274,149.49,149.39,8.45375735]
[1641477710851,11.91242274,149.49,149.39,8.45375735]
[1641477711253,3.28463534,149.48,149.42,4.0]
[1641477711551,3.28463534,149.48,149.4,4.0]
[1641477712151,3.28463534,149.48,149.44,27.66479]
[1641477712353,27.66479,149.5,149.44,27.66479]
[1641477713152,4.0,149.45,149.41,1.44610375]
[1641477713353,4.0,149.42,149.39,11.42890936]
[1641477713554,4.0,149.4,149.29,118.44942402]
[1641477713753,4.0,149.37,149.29,118.44942402]
[1641477713953,6.352,149.37,149.29,118.44942402]
[1641477714152,27.66479,149.34,149.29,118.44942402]
[1641477714353,33.50979,149.34,149.26,4.0]
[1641477714652,33.50979,149.34,149.25,38.35464818]
[1641477715155,33.50979,149.34,149.26,4.0]
[1641477715456,33.50979,149.34,149.25,34.35464818]
[1641477715753,33.50979,149.34,149.25,38.35464818]
[1641477715955,33.50979,149.34,149.28,4.0]
[1641477716153,33.50979,149.34,149.25,34.35464818]
[1641477716356,33.50979,149.34,149.25,38.35464818]
[1641477716556,33.50979,149.34,149.26,4.0]
[1641477716754,33.50979,149.34,149.29,6.68806849]
[1641477716954,5.845,149.34,149.29,6.68806849]
[1641477717155,5.845,149.34,149.27,6.68873951]
[1641477717956,5.845,149.34,149.29,4.0]
[1641477718356,5.845,149.34,149.3,4.0]
[1641477718556,5.845,149.34,149.31,4.0]
[1641477718758,5.845,149.34,149.32,4.0]
[1641477718957,34.01679,149.37,149.32,4.0]
[1641477719159,34.01679,149.37,149.33,4.0]
[1641477719359,34.01679,149.37,149.32,4.0]
[1641477719560,34.01679,149.37,149.33,4.0]
[1641477719759,34.01679,149.37,149.35,4.0]
[1641477719959,34.01679,149.37,149.33,4.0]
[1641477720160,34.01679,149.37,149.31,27.66479]
[1641477720963,34.01679,149.37,149.3,6.6873976]
[1641477721364,34.01679,149.37,149.28,27.66479]
[1641477721563,34.01679,149.37,149.26,6.68918693]
[1641477722168,31.66479,149.33,149.26,6.68918693]
[1641477722367,32.89579,149.33,149.26,6.68918693]
[1641477724866,32.89579,149.33,149.26,10.68918693]
[1641477725467,32.89579,149.33,149.27,4.0]
[1641477725869,32.89579,149.33,149.28,4.0]
[1641477726068,32.89579,149.33,149.27,4.0]
[1641477726467,5.231,149.33,149.28,4.0]
[1641477726670,5.231,149.33,149.26,6.68918693]
[1641477726870,5.231,149.33,149.26,63.45512485]
[1641477727470,66.9704,149.36,149.26,63.45512485]
[1641477728079,70.9704,149.36,149.26,63.45512485]
[1641477728273,27.66479,149.34,149.26,63.45512485]
[1641477728571,34.27379,149.34,149.26,6.68918693]
[1641477729473,34.27379,149.34,149.27,1.43759794]
[1641477729674,34.27379,149.34,149.28,37.85707369]
[1641477730676,34.27379,149.34,149.3,14.15629157]
[1641477732279,27.66479,149.34,149.3,14.15629157]
[1641477732680,27.66479,149.34,149.32,14.15629157]